bitfinex-derivatives/quotes_BTCF0:USTF0_20251119
["timestamp","ask_amount","ask_price","bid_price","bid_amount"]
[1763587847193,0.3608,90158.0,90145.0,0.04545]
[1763587847386,0.00219803,90146.0,90145.0,0.1565079]
[1763587848286,0.00016637,90148.0,90147.0,0.04545]
[1763587848987,0.0023644,90148.0,90147.0,0.04545]
[1763587849385,0.04521,90146.0,90145.0,0.4718579]
[1763587849693,0.00219803,90146.0,90145.0,0.4949079]
[1763587849894,0.00016637,90148.0,90147.0,0.04545]
[1763587850891,0.20779074,90160.0,90147.0,0.04545]
[1763587851092,0.20779074,90160.0,90159.0,0.04545]
[1763587851293,0.11323773,90160.0,90159.0,0.02305]
[1763587851596,0.00219803,90160.0,90159.0,0.02305]
[1763587852288,0.00219803,90160.0,90159.0,0.04545]
[1763587852486,0.10892,90162.0,90161.0,0.04545]
[1763587852683,0.11111803,90162.0,90161.0,0.04545]
[1763587853083,0.00016637,90169.0,90161.0,0.04545]
[1763587853084,0.00016637,90169.0,90168.0,0.1564795]
[1763587853289,0.0023644,90169.0,90168.0,0.1564795]
[1763587856698,0.0023644,90169.0,90168.0,0.04545]
[1763587856893,0.1333321,90166.0,90161.0,0.3608]
[1763587857090,0.00219803,90162.0,90161.0,0.5172882]
[1763587857492,0.111042,90159.0,90158.0,0.1110407]
[1763587857690,0.00219803,90159.0,90158.0,0.1564907]
[1763587860101,0.1562605,90151.0,90150.0,0.00016637]
[1763587860403,0.15845853,90151.0,90150.0,0.00016637]
[1763587860702,0.1562703,90143.0,90142.0,0.3608]
[1763587860902,0.00219803,90143.0,90142.0,0.40625]
[1763587861098,0.04740803,90143.0,90142.0,0.3608]
[1763587861300,0.76299803,90143.0,90125.0,0.3608]
[1763587861500,0.04521,90126.0,90125.0,0.3608]
[1763587861701,0.11107803,90126.0,90125.0,0.40625]
[1763587862405,0.00219803,90126.0,90125.0,0.40625]
[1763587862707,0.00219803,90126.0,90125.0,0.40725]
[1763587862894,0.04508803,90126.0,90125.0,0.3618]
[1763587863095,0.04508803,90126.0,90125.0,0.001]
[1763587864311,0.40588803,90126.0,90125.0,0.001]
[1763587864520,0.51696933,90126.0,90125.0,0.001]
[1763587865124,0.40588803,90126.0,90125.0,0.001]
[1763587865506,0.38412803,90126.0,90125.0,0.02399]
[1763587865706,0.00219803,90126.0,90125.0,0.0462]
[1763587865906,0.20795711,90135.0,90125.0,0.0462]
[1763587865907,0.00016637,90135.0,90134.0,0.1562714]
[1763587866106,0.3608,90155.0,90154.0,0.0452]
[1763587866418,0.00219803,90155.0,90154.0,0.1562468]
[1763587866614,0.3608,90163.0,90162.0,0.1562369]
[1763587866822,0.1110163,90179.0,90174.0,0.1110216]
[1763587867019,0.00219803,90177.0,90174.0,0.1110216]
[1763587867217,0.00219803,90177.0,90167.0,0.00016637]
[1763587867218,0.11321733,90177.0,90170.0,0.1110261]
[1763587867423,0.11321733,90177.0,90173.0,0.111023]
[1763587867615,0.02113,90174.0,90173.0,0.111023]
[1763587867815,0.00219803,90174.0,90173.0,0.156223]
[1763587868516,0.02332803,90174.0,90167.0,0.00016637]
[1763587868821,0.02332803,90174.0,90167.0,0.02315637]
[1763587868822,0.02113,90168.0,90167.0,0.02315637]
[1763587869120,0.11107803,90168.0,90167.0,0.02315637]
[1763587869513,0.15396803,90168.0,90167.0,0.00016637]
[1763587870315,0.11107803,90168.0,90167.0,0.04536637]
[1763587870718,0.001,90174.0,90173.0,0.0452]
[1763587870919,0.00319803,90174.0,90173.0,0.1562234]
[1763587871115,0.00219803,90174.0,90173.0,0.0452]
[1763587873415,0.10888,90185.0,90171.0,0.1110251]
[1763587873416,0.10888,90185.0,90184.0,0.0452]
[1763587873618,0.00219803,90185.0,90184.0,0.0452]
[1763587873818,0.3608,90205.0,90204.0,0.1561852]
[1763587874512,0.3608,90217.0,90216.0,0.0452]
[1763587874727,0.36299803,90217.0,90216.0,0.0452]
[1763587875024,0.10884,90223.0,90222.0,0.1561631]
[1763587875222,0.00010503,90226.0,90225.0,0.05845]
[1763587875419,0.00010503,90226.0,90221.0,0.3608]
[1763587875420,0.00230306,90226.0,90221.0,0.3608]
[1763587875625,0.00230306,90226.0,90225.0,0.0452]
[1763587876511,0.04289,90222.0,90211.0,0.110976]
[1763587876716,0.00219803,90212.0,90211.0,0.156176]
[1763587876923,0.00219803,90212.0,90210.0,0.01325]
[1763587876924,0.00010503,90226.0,90225.0,0.1561594]
[1763587877125,0.00230306,90226.0,90225.0,0.0452]
[1763587877318,0.13227306,90226.0,90210.0,0.01325]
[1763587877519,0.20779074,90220.0,90219.0,0.02299]
[1763587877722,0.00219803,90220.0,90219.0,0.0452]
[1763587878027,0.10994503,90226.0,90225.0,0.0452]
[1763587878226,0.00110503,90226.0,90225.0,0.1561594]
[1763587878519,0.1088,90239.0,90225.0,0.1561594]
[1763587878520,0.1088,90239.0,90238.0,0.1561434]
[1763587878725,0.11099803,90239.0,90238.0,0.1561434]
[1763587878923,0.11099803,90239.0,90238.0,0.0452]
[1763587879228,0.00219803,90239.0,90238.0,0.0452]
[1763587880018,0.3608,90277.0,90258.0,0.0452]
[1763587880215,0.02186,90300.0,90258.0,0.0452]
[1763587880216,0.3608,90285.0,90276.0,0.0452]
[1763587880417,0.1108967,90276.0,90271.0,0.00016617]
[1763587880613,0.00219803,90272.0,90271.0,0.04536617]
[1763587880818,0.00219803,90272.0,90271.0,0.15626907]
[1763587881013,0.00219803,90272.0,90271.0,0.04536617]
[1763587881219,0.27745963,90272.0,90271.0,0.00016617]
[1763587881625,0.00219803,90272.0,90271.0,0.04536617]
[1763587881826,0.3608,90277.0,90276.0,0.1560967]
[1763587882024,0.36299803,90277.0,90276.0,0.0452]
[1763587882224,0.36299803,90277.0,90271.0,0.00016617]
[1763587882419,0.04289,90272.0,90271.0,0.00016617]
[1763587882621,0.00219803,90272.0,90271.0,0.00016617]
[1763587882823,0.00219803,90272.0,90271.0,0.04536617]
[1763587883024,0.3608,90283.0,90282.0,0.02299]
[1763587883224,0.00219803,90283.0,90282.0,0.0452]
[1763587883922,0.00219803,90283.0,90282.0,0.406]
[1763587884119,0.10876,90287.0,90285.0,0.0452]
[1763587884315,0.3608,90303.0,90288.0,0.01325]
[1763587884514,0.00219803,90311.0,90310.0,0.110855]
[1763587884720,0.00219803,90311.0,90310.0,0.0452]
[1763587885019,0.02332803,90311.0,90309.0,0.1108559]
[1763587885221,0.02332803,90311.0,90302.0,0.1108639]
[1763587885417,0.02332803,90311.0,90268.0,0.1109057]
[1763587885418,0.04289,90292.0,90282.0,0.3608]
[1763587885622,0.04508803,90287.0,90282.0,0.3608]
[1763587885827,0.40588803,90287.0,90271.0,0.3608]
[1763587886029,0.40588803,90287.0,90273.0,0.1108997]
[1763587886428,0.40588803,90287.0,90271.0,0.3608]
[1763587886724,0.110904,90271.0,90261.0,0.110915]
[1763587886926,0.00219803,90262.0,90261.0,0.110915]
[1763587887126,0.00219803,90262.0,90261.0,0.155255]
[1763587887331,0.00219803,90262.0,90261.0,0.1552551]
[1763587887828,0.621994,90271.0,90261.0,0.1552551]
[1763587887829,0.36096586,90271.0,90261.0,0.1552551]
[1763587888026,0.3618,90287.0,90286.0,0.1552244]
[1763587888228,0.00319803,90287.0,90286.0,0.5160244]
[1763587888531,0.00219803,90287.0,90286.0,0.5160244]
[1763587889118,0.1108889,90283.0,90278.0,0.3608]
[1763587889321,0.04620803,90279.0,90278.0,0.3608]
[1763587889826,0.04620803,90279.0,90278.0,0.3823]
[1763587889827,0.00219803,90279.0,90278.0,0.3823]
[1763587890026,0.02415803,90279.0,90278.0,0.3608]
[1763587890229,0.04620803,90279.0,90278.0,0.3608]
[1763587890528,0.1549043,90278.0,90277.0,0.00016617]
[1763587890722,0.15710233,90278.0,90277.0,0.00016617]
[1763587890919,0.04620803,90278.0,90277.0,0.00016617]
[1763587892030,0.04720803,90278.0,90277.0,0.00016617]
[1763587892219,0.04720803,90278.0,90251.0,0.3608]
[1763587892220,0.00319803,90278.0,90251.0,0.3608]
[1763587892433,0.37194404,90261.0,90251.0,0.3608]
[1763587892625,0.00219803,90252.0,90251.0,0.40449]
[1763587892920,0.00219803,90252.0,90251.0,0.5154174]
[1763587894335,0.00219803,90252.0,90251.0,0.40449]
[1763587894923,0.11312423,90252.0,90251.0,0.04369]
[1763587895127,0.00219803,90252.0,90251.0,0.04369]
[1763587895531,0.00219803,90252.0,90249.0,0.1109288]
[1763587896329,0.04409,90243.0,90242.0,0.00016617]
[1763587896532,0.36299803,90243.0,90242.0,0.04385617]
[1763587896722,0.00219803,90243.0,90242.0,0.04385617]
[1763587896926,0.00219803,90243.0,90242.0,0.40465617]
[1763587897122,0.110924,90254.0,90253.0,0.02179]
[1763587897432,0.1109286,90251.0,90250.0,0.02179]
[1763587897733,0.1550248,90245.0,90244.0,0.3608]
[1763587897929,0.1550248,90245.0,90242.0,0.00016617]
[1763587897930,0.04409,90243.0,90242.0,0.00016617]
[1763587898231,0.40708803,90243.0,90242.0,0.00016617]
[1763587898439,0.40708803,90243.0,90242.0,0.04385617]
[1763587898440,0.00219803,90243.0,90242.0,0.04385617]
[1763587900027,0.04628803,90243.0,90242.0,0.00016617]
[1763587900236,0.1109251,90253.0,90252.0,0.04369]
[1763587900537,0.36299803,90253.0,90252.0,0.04369]
[1763587900836,0.1109348,90245.0,90244.0,0.02179]
[1763587901032,0.11313283,90245.0,90244.0,0.02179]
[1763587901222,0.11313283,90245.0,90244.0,0.04369]
[1763587901743,0.11313283,90245.0,90242.0,0.00016617]
[1763587901744,0.15722283,90245.0,90242.0,0.00016617]
[1763587901930,0.00219803,90245.0,90244.0,0.04369]
[1763587903042,0.10864,90249.0,90248.0,0.1546211]
[1763587903241,0.11083803,90249.0,90248.0,0.1546211]
[1763587903630,0.15492803,90249.0,90242.0,0.00016617]
[1763587903828,0.1109373,90243.0,90242.0,0.04385617]
[1763587904039,0.11313533,90243.0,90242.0,0.04385617]
[1763587904234,0.00219803,90243.0,90242.0,0.04385617]
[1763587905031,0.02496803,90243.0,90242.0,0.04385617]
[1763587905426,0.10864,90249.0,90248.0,0.1546211]
[1763587905641,0.00219803,90249.0,90248.0,0.5154211]
[1763587905838,0.10880617,90261.0,90260.0,0.04369]
[1763587906143,0.04409,90246.0,90245.0,0.1109344]
[1763587906337,0.1109348,90245.0,90239.0,0.3608]
[1763587906541,0.00219803,90243.0,90242.0,0.04385617]
[1763587906836,0.00219803,90243.0,90242.0,0.02195617]
[1763587907031,0.02496803,90243.0,90242.0,0.02195617]
[1763587907533,0.00219803,90243.0,90242.0,0.04385617]
[1763587908828,0.3608,90253.0,90252.0,0.04369]
[1763587909028,0.00219803,90253.0,90252.0,0.1546162]
[1763587909232,0.00016617,90261.0,90252.0,0.1546162]
[1763587909532,0.0023642,90261.0,90260.0,0.1546064]
[1763587909939,0.0251342,90261.0,90260.0,0.04369]
[1763587910137,0.04409,90254.0,90253.0,0.02179]
[1763587910338,0.00219803,90254.0,90253.0,0.154615]
[1763587910846,0.00219803,90254.0,90253.0,0.04369]
[1763587911538,0.04409,90243.0,90242.0,0.00016617]
[1763587911738,0.04628803,90243.0,90242.0,0.00016617]
[1763587912743,0.00219803,90243.0,90242.0,0.04385617]
[1763587913343,0.3608,90253.0,90252.0,0.1546162]
[1763587913538,0.36299803,90253.0,90252.0,0.1546162]
[1763587913737,0.00219803,90253.0,90252.0,0.1546162]
[1763587914842,0.10864,90266.0,90260.0,0.1546064]
[1763587915031,0.0023642,90261.0,90260.0,0.1546064]
[1763587916446,0.0251342,90261.0,90260.0,0.04369]
[1763587916746,0.0464542,90261.0,90260.0,0.02179]
[1763587917237,0.0474542,90261.0,90260.0,0.02179]
[1763587917637,0.0033642,90261.0,90260.0,0.04369]
[1763587917939,0.00116617,90261.0,90260.0,0.04369]
[1763587918341,0.10864,90278.0,90277.0,0.1545855]
[1763587918538,0.11083803,90278.0,90277.0,0.1545855]
[1763587918741,0.13360803,90278.0,90277.0,0.1545855]
[1763587919240,0.13360803,90278.0,90277.0,0.04369]
[1763587919745,0.13360803,90278.0,90270.0,0.3608]
[1763587919746,0.1108985,90275.0,90270.0,0.3608]
[1763587919954,0.37346,90285.0,90270.0,0.3608]
[1763587919955,0.00219803,90271.0,90270.0,0.4934941]
[1763587920142,0.00219803,90271.0,90270.0,0.5153941]
[1763587920350,0.1086,90279.0,90278.0,0.02179]
[1763587920541,0.11079803,90279.0,90278.0,0.04369]
[1763587920745,0.3608,90284.0,90283.0,0.1545781]
[1763587921051,0.3608,90303.0,90302.0,0.04369]
[1763587921245,0.00027678,90326.0,90295.0,0.1108734]
[1763587921246,0.3608,90323.0,90314.0,0.04369]
[1763587921439,0.04628803,90315.0,90314.0,0.02179]
[1763587921640,0.01266,90314.0,90295.0,0.3608]
[1763587921842,0.00219803,90296.0,90295.0,0.40468]
[1763587922349,0.00219803,90296.0,90293.0,0.11104177]
[1763587922350,0.04435,90265.0,90254.0,0.01124708]
[1763587922547,0.00219803,90255.0,90254.0,0.01124708]
[1763587922847,0.00219803,90255.0,90241.0,0.02226]
[1763587922848,0.1109387,90242.0,90241.0,0.02226]
[1763587923047,0.1109387,90242.0,90241.0,0.04435]
[1763587923048,0.00219803,90242.0,90241.0,0.04435]
[1763587923237,0.3608,90256.0,90255.0,0.04435]
[1763587923443,0.1086,90259.0,90258.0,0.1552688]
[1763587923645,0.11079803,90259.0,90258.0,0.1552688]
[1763587923947,0.00219803,90259.0,90258.0,0.1552688]
[1763587924642,0.04435,90255.0,90254.0,0.3608]
[1763587924839,0.11079803,90255.0,90254.0,0.02226]
[1763587925040,0.11079803,90255.0,90254.0,0.04435]
[1763587925448,0.00016619,90265.0,90264.0,0.1552615]
[1763587925656,0.11096422,90265.0,90264.0,0.1552615]
[1763587926546,0.00016619,90265.0,90264.0,0.1552615]
[1763587926855,0.1086,90273.0,90272.0,0.1552516]
[1763587927051,0.26102814,90290.0,90284.0,0.1108863]
[1763587927245,0.02501803,90285.0,90284.0,0.1108863]
[1763587927462,0.1108873,90284.0,90272.0,0.3608]
[1763587927656,0.00219803,90283.0,90281.0,0.13315]
[1763587927852,0.00219803,90283.0,90282.0,0.02226]
[1763587928150,0.11075803,90283.0,90282.0,0.04435]
[1763587928353,0.00219803,90283.0,90282.0,0.04435]
[1763587928554,0.00219803,90283.0,90272.0,0.37358]
[1763587928555,0.26102814,90310.0,90295.0,0.1108728]
[1763587928750,0.00219803,90298.0,90297.0,0.04435]
[1763587929143,0.11075803,90298.0,90297.0,0.04435]
[1763587929551,0.11075803,90298.0,90297.0,0.1552209]
[1763587929749,0.11075803,90298.0,90292.0,0.3608]
[1763587929750,0.00219803,90298.0,90292.0,0.3608]
[1763587930360,0.00219803,90298.0,90297.0,0.02226]
[1763587930748,0.00219803,90298.0,90297.0,0.04435]
[1763587930949,0.11075803,90298.0,90297.0,0.04435]
[1763587931159,0.1108753,90294.0,90292.0,0.3608]
[1763587931358,0.00219803,90293.0,90292.0,0.3608]
[1763587932151,0.00219803,90293.0,90292.0,0.40515]
[1763587932956,0.00219803,90293.0,90292.0,0.5160271]
[1763587933347,0.001,90294.0,90293.0,0.04435]
[1763587933755,0.1552258,90293.0,90292.0,0.3608]
[1763587933953,0.11307383,90293.0,90289.0,0.00016619]
[1763587934152,0.00319803,90293.0,90292.0,0.40515]
[1763587934463,0.11175803,90293.0,90292.0,0.40515]
[1763587934665,0.13457803,90293.0,90292.0,0.38306]
[1763587934858,0.13457803,90293.0,90292.0,0.02226]
[1763587935066,0.1108771,90292.0,90289.0,0.00016619]
[1763587935359,0.04654803,90290.0,90289.0,0.00016619]
[1763587935555,0.00219803,90290.0,90289.0,0.04451619]
[1763587935754,0.02501803,90290.0,90289.0,0.00016619]
[1763587935954,0.02501803,90290.0,90289.0,0.11104689]
[1763587936155,0.02501803,90290.0,90289.0,0.00016619]
[1763587936355,0.00219803,90290.0,90289.0,0.04451619]
[1763587936550,0.11071803,90290.0,90289.0,0.04451619]
[1763587937664,0.00219803,90290.0,90289.0,0.04451619]
[1763587937863,0.00319803,90290.0,90289.0,0.04451619]
[1763587938061,0.04754803,90290.0,90289.0,0.00016619]
[1763587938763,0.04754803,90290.0,90271.0,0.3608]
[1763587938764,0.04435,90280.0,90279.0,0.3608]
[1763587938956,0.04435,90280.0,90259.0,0.3608]
[1763587938957,0.1552664,90260.0,90259.0,0.3608]
[1763587939161,0.11071803,90260.0,90250.0,0.1109287]
[1763587939360,0.26322617,90260.0,90253.0,0.1109244]
[1763587939553,0.10852,90259.0,90258.0,0.02226]
[1763587939763,0.11071803,90259.0,90258.0,0.04435]
[1763587940258,0.11071803,90259.0,90258.0,0.1552688]
[1763587940259,0.00219803,90259.0,90258.0,0.1552688]
[1763587940465,0.00016619,90268.0,90267.0,0.1552578]
[1763587940652,0.00016619,90268.0,90267.0,0.5160578]
[1763587940856,0.00236422,90268.0,90267.0,0.5160578]
[1763587941062,0.00016619,90268.0,90267.0,0.5160578]
[1763587941958,0.1108757,90294.0,90267.0,0.5160578]
[1763587942157,0.1208428,90320.0,90267.0,0.5160578]
[1763587942158,0.3608,90312.0,90288.0,0.155232]
[1763587942368,0.1108735,90295.0,90293.0,0.3608]
[1763587942558,0.00219803,90294.0,90293.0,0.04435]
[1763587942867,0.00219803,90294.0,90293.0,0.40515]
[1763587943066,0.3608,90312.0,90309.0,0.1108558]
[1763587943257,0.00219803,90310.0,90309.0,0.1331158]
[1763587943560,0.11071803,90310.0,90309.0,0.1552058]
[1763587943765,0.00219803,90310.0,90309.0,0.1552058]
[1763587943956,0.11071803,90310.0,90309.0,0.1552058]
[1763587944661,0.00219803,90310.0,90309.0,0.1552058]
[1763587945465,0.3608,90334.0,90325.0,0.1551865]
[1763587945763,0.00247481,90326.0,90325.0,0.04435]
[1763587946071,0.11099481,90326.0,90325.0,0.04435]
[1763587947063,0.00247481,90326.0,90325.0,0.04435]
[1763587947260,0.00247481,90326.0,90325.0,0.40515]
[1763587947663,0.11531011,90326.0,90325.0,0.40515]
[1763587947863,0.00447481,90326.0,90325.0,0.40515]
[1763587948062,0.00227678,90326.0,90325.0,0.40515]
[1763587948262,0.00447481,90326.0,90325.0,0.40515]
[1763587948462,0.00347481,90326.0,90325.0,0.40515]
[1763587948658,0.20747198,90340.0,90339.0,0.1564594]
[1763587948860,0.00027665,90366.0,90348.0,0.1564483]
[1763587948861,0.20747198,90349.0,90348.0,0.1564483]
[1763587949060,0.11067803,90349.0,90348.0,0.1564483]
[1763587949256,0.00219803,90349.0,90348.0,0.1564483]
[1763587949767,0.20747198,90358.0,90357.0,0.1564373]
[1763587949974,0.00219803,90358.0,90357.0,0.1564373]
[1763587950164,0.00219803,90358.0,90357.0,0.04564]
[1763587951965,0.00319803,90358.0,90357.0,0.04564]
[1763587952270,0.3608,90387.0,90386.0,0.1333917]
[1763587952464,0.47147803,90387.0,90386.0,0.04534]
[1763587952770,0.51723803,90387.0,90377.0,0.000166]
[1763587952967,0.04576,90378.0,90377.0,0.000166]
[1763587953166,0.15872953,90378.0,90377.0,0.000166]
[1763587953367,0.15643803,90378.0,90377.0,0.000166]
[1763587953665,0.00219803,90378.0,90377.0,0.045506]
[1763587954061,0.4715398,90404.0,90395.0,0.1560907]
[1763587954258,0.10844,90403.0,90395.0,0.1560907]
[1763587954561,0.00219803,90396.0,90395.0,0.04534]
[1763587954969,0.3608,90404.0,90403.0,0.04534]
[1763587955164,0.36299803,90404.0,90403.0,0.04534]
[1763587955768,0.40875803,90404.0,90392.0,0.1107538]
[1763587955968,0.20747198,90402.0,90390.0,0.37362]
[1763587956169,0.00219803,90391.0,90390.0,0.5297168]
[1763587956366,0.3608,90404.0,90403.0,0.04534]
[1763587956570,0.47143803,90404.0,90403.0,0.04534]
[1763587956770,0.51719803,90404.0,90390.0,0.37362]
[1763587956974,0.20747198,90400.0,90390.0,0.37362]
[1763587957177,0.00219803,90391.0,90384.0,0.1107638]
[1763587957574,0.00219803,90391.0,90390.0,0.05816]
[1763587957967,0.3608,90404.0,90403.0,0.1560809]
[1763587958278,0.36299803,90404.0,90403.0,0.1560809]
[1763587958776,0.4692,90423.0,90422.0,0.02263]
[1763587958975,0.02284,90414.0,90413.0,0.00016589]
[1763587959170,0.04795803,90414.0,90413.0,0.00016589]
[1763587959574,0.40875803,90414.0,90413.0,0.00016589]
[1763587961478,0.41075803,90414.0,90413.0,0.00016589]
[1763587962381,0.51915803,90414.0,90413.0,0.00016589]
[1763587964373,0.51911803,90414.0,90413.0,0.11089459]
[1763587964766,0.51911803,90414.0,90413.0,0.00016589]
[1763587968166,0.47335803,90414.0,90413.0,0.15623459]
[1763587968375,0.36499803,90414.0,90413.0,0.15623459]
[1763587968679,0.41075803,90414.0,90413.0,0.00016589]
[1763587968876,0.04576,90402.0,90401.0,0.3608]
[1763587969086,0.02284,90391.0,90384.0,0.37362]
[1763587969382,0.00219803,90385.0,90384.0,0.5297237]
[1763587969581,0.10832,90390.0,90389.0,0.1560981]
[1763587969782,0.13335803,90390.0,90389.0,0.1560981]
[1763587970184,0.10832,90390.0,90389.0,0.1560981]
[1763587970368,0.15627803,90390.0,90384.0,0.37362]
[1763587970676,0.04576,90385.0,90384.0,0.3608]
[1763587970882,0.04795803,90385.0,90384.0,0.3608]
[1763587971078,0.00219803,90385.0,90384.0,0.40614]
[1763587971982,0.001,90385.0,90384.0,0.40614]
[1763587973986,0.02603803,90385.0,90384.0,0.40614]
[1763587974182,0.04576,90381.0,90380.0,0.00016589]
[1763587974383,0.04795803,90381.0,90380.0,0.02279589]
[1763587974678,0.04795803,90381.0,90380.0,0.00016589]
[1763587975380,0.04895803,90381.0,90380.0,0.00016589]
[1763587975782,0.40975803,90381.0,90380.0,0.00016589]
[1763587975980,0.04576,90369.0,90364.0,0.1107879]
[1763587976177,0.15627803,90369.0,90364.0,0.1107879]
[1763587976376,0.02284,90365.0,90364.0,0.1334179]
[1763587976689,0.3608,90373.0,90372.0,0.1561189]
[1763587976888,0.00219803,90373.0,90372.0,0.5169189]
[1763587977087,0.04795803,90373.0,90372.0,0.02263]
[1763587977293,0.04795803,90373.0,90366.0,0.1107851]
[1763587977682,0.04795803,90373.0,90363.0,0.47175589]
[1763587977979,0.04576,90364.0,90363.0,0.47175589]
[1763587978290,0.00219803,90364.0,90363.0,0.51709589]
[1763587978592,0.3608,90371.0,90370.0,0.1689413]
[1763587978783,0.00219803,90371.0,90370.0,0.1689413]
[1763587979179,0.00016599,90382.0,90380.0,0.1334791]
[1763587979393,0.3608,90399.0,90398.0,0.05816]
[1763587979591,0.00219803,90399.0,90398.0,0.168907]
[1763587979778,0.3608,90407.0,90398.0,0.168907]
[1763587979779,0.3608,90407.0,90406.0,0.04534]
[1763587979979,0.00219803,90407.0,90406.0,0.40614]
[1763587980190,0.11051803,90407.0,90406.0,0.04534]
[1763587980386,0.15627803,90407.0,90403.0,0.3608]
[1763587980591,0.15627803,90407.0,90400.0,0.1107441]
[1763587980889,0.02284,90404.0,90403.0,0.1333703]
[1763587981080,0.02503803,90404.0,90403.0,0.1333703]
[1763587981282,0.04576,90398.0,90397.0,0.00016599]
[1763587981491,0.00219803,90398.0,90397.0,0.04550599]
[1763587981791,0.10932,90407.0,90406.0,0.1558072]
[1763587981994,0.11151803,90407.0,90406.0,0.1558072]
[1763587982190,0.00319803,90407.0,90406.0,0.1558072]
[1763587982385,0.10832,90421.0,90415.0,0.1551662]
[1763587982781,0.3608,90431.0,90430.0,0.1551478]
[1763587982982,0.36107641,90446.0,90435.0,0.1107012]
[1763587983288,0.11051803,90445.0,90435.0,0.1107012]
[1763587983680,0.11051803,90445.0,90440.0,0.1106955]
[1763587983888,0.11051803,90445.0,90435.0,0.01279]
[1763587984277,0.00219803,90445.0,90440.0,0.1106952]
[1763587984481,0.02381803,90445.0,90435.0,0.37359]
[1763587984680,0.04477,90434.0,90433.0,0.00016589]
[1763587984887,0.04477,90413.0,90412.0,0.3608]
[1763587985094,0.02162,90393.0,90392.0,0.3608]
[1763587985290,0.00219803,90393.0,90392.0,0.40524]
[1763587985994,0.00219803,90393.0,90392.0,0.04444]
[1763587986688,0.00016557,90402.0,90401.0,0.1551834]
[1763587986889,0.0023636,90402.0,90401.0,0.04444]
[1763587987686,0.0239836,90402.0,90394.0,0.3608]
[1763587987891,0.0239836,90402.0,90390.0,0.01279]
[1763587988083,0.0023636,90402.0,90401.0,0.04444]
[1763587989685,0.0471336,90402.0,90398.0,0.1107465]
[1763587989886,0.0471336,90402.0,90394.0,0.3608]
[1763587990189,0.0023636,90402.0,90395.0,0.1107507]
[1763587990386,0.0023636,90402.0,90399.0,0.1107454]
[1763587990691,0.0023636,90402.0,90401.0,0.04444]
[1763587991089,0.00016557,90402.0,90401.0,0.04444]
[1763587991295,0.0023636,90402.0,90401.0,0.04444]
[1763587991891,0.0239836,90402.0,90394.0,0.3608]
[1763587992286,0.04477,90395.0,90385.0,0.3608]
[1763587992483,0.00219803,90386.0,90385.0,0.3608]
[1763587992689,0.11047803,90386.0,90385.0,0.3828]
[1763587993194,0.11047803,90386.0,90385.0,0.40524]
[1763587994494,0.13209803,90386.0,90385.0,0.3608]
[1763587994990,0.15524803,90386.0,90385.0,0.3608]
[1763587995386,0.04477,90384.0,90383.0,0.00016589]
[1763587995698,0.04477,90367.0,90359.0,0.3608]
[1763587995998,0.13209803,90367.0,90359.0,0.3608]
[1763587996186,0.15524803,90367.0,90359.0,0.3608]
[1763587996589,0.15524803,90367.0,90363.0,0.1107889]
[1763587997085,0.15524803,90367.0,90359.0,0.3608]
[1763587997287,0.15524803,90367.0,90364.0,0.1107883]
[1763587997593,0.13209803,90367.0,90364.0,0.1107883]
[1763587997796,0.56843797,90376.0,90366.0,0.04471665]
[1763587998091,0.00016599,90376.0,90375.0,0.1552152]
[1763587998288,0.3608,90394.0,90393.0,0.1551932]
[1763587998496,0.00219803,90394.0,90393.0,0.1551932]
[1763587998887,6.13e-06,90394.0,90393.0,0.15739123]
[1763587999393,0.0007156,90394.0,90393.0,0.00219803]
[1763587999595,0.0454856,90394.0,90393.0,0.00219803]
[1763587999893,0.0007156,90394.0,90393.0,0.02419803]
[1763588000198,0.0007156,90394.0,90393.0,0.04663803]
[1763588000794,0.0223356,90394.0,90393.0,0.00219803]
[1763588000995,0.0454856,90394.0,90393.0,0.00219803]
[1763588001297,0.0454856,90394.0,90393.0,0.11295123]
[1763588001497,0.0007156,90394.0,90393.0,0.15739123]
[1763588002490,0.0007156,90394.0,90393.0,0.04663803]
[1763588002891,0.0454856,90394.0,90393.0,0.00219803]
[1763588003196,0.0454856,90394.0,90393.0,0.15739123]
[1763588003197,0.0007156,90394.0,90393.0,0.15739123]
[1763588003396,0.0454856,90394.0,90393.0,0.00219803]
[1763588003799,0.02162,90385.0,90384.0,0.00016599]
[1763588003993,0.0223356,90385.0,90384.0,0.00236402]
[1763588005294,0.0454856,90385.0,90384.0,0.00236402]
[1763588005696,0.0007156,90385.0,90384.0,0.05959402]
[1763588006697,0.3608,90399.0,90398.0,0.110747]
[1763588006902,0.4697556,90399.0,90398.0,0.13542503]
[1763588007502,0.4697556,90399.0,90398.0,0.02467803]
[1763588007890,0.4707556,90399.0,90398.0,0.02467803]
[1763588008094,0.3625156,90399.0,90398.0,0.02467803]
[1763588008295,0.0017156,90399.0,90398.0,0.40693803]
[1763588008798,0.001,90399.0,90398.0,0.40693803]
[1763588008998,0.10824,90415.0,90402.0,0.1546821]
[1763588009191,0.10824,90415.0,90414.0,0.1546674]
[1763588009385,0.3608,90427.0,90426.0,0.1331927]
[1763588009592,0.3615156,90427.0,90426.0,0.15685073]
[1763588010008,0.10824,90430.0,90429.0,0.04394]
[1763588010194,0.3608,90443.0,90442.0,0.04394]
[1763588010495,0.0007156,90443.0,90442.0,0.15683113]
[1763588011203,0.10824,90448.0,90445.0,0.04394]
[1763588011404,0.3608,90464.0,90448.0,0.01361]
[1763588011602,0.0007156,90462.0,90461.0,0.04394]
[1763588011793,0.3608,90473.0,90472.0,0.02306]
[1763588011993,0.3615156,90473.0,90472.0,0.04659803]
[1763588012799,0.0007156,90473.0,90472.0,0.40739803]
[1763588013489,0.0037156,90473.0,90472.0,0.40739803]
[1763588013689,0.003,90473.0,90472.0,0.40739803]
[1763588013895,0.3608,90485.0,90484.0,0.0444]
[1763588014095,0.3830556,90485.0,90484.0,0.00219803]
[1763588014290,0.4056856,90485.0,90475.0,0.0001658]
[1763588014494,0.02154,90477.0,90476.0,0.00219803]
[1763588014698,0.0222556,90477.0,90476.0,0.00219803]
[1763588014995,0.0007156,90477.0,90476.0,0.13590963]
[1763588015204,0.0007156,90477.0,90476.0,0.02525803]
[1763588015404,0.0007156,90477.0,90476.0,0.04659803]
[1763588015799,0.0007156,90477.0,90476.0,0.15724963]
[1763588016207,0.3608,90485.0,90484.0,0.1550418]
[1763588016406,0.3615156,90485.0,90484.0,0.04659803]
[1763588016604,0.4056856,90485.0,90475.0,0.0001658]
[1763588016905,0.04417,90476.0,90475.0,0.0001658]
[1763588017110,0.5138856,90476.0,90475.0,0.00236383]
[1763588017404,0.0007156,90476.0,90475.0,0.04676383]